[Event "Czech Extraliga 2023-24"]
[Site "Czech Republic"]
[Date "2024.04.07"]
[Round "11.6"]
[White "Smolik, Jachym"]
[Black "Gnojek, Petr"]
[Result "1/2-1/2"]
[ECO "B08"]
[WhiteElo "2351"]
[BlackElo "2428"]
[Annotator "TA"]
[PlyCount "109"]
[EventDate "2023.10.14"]
[EventCountry "CZE"]
[SourceTitle "playchess.com"]
[Source "ChessBase"]
[SourceQuality "1"]
[TimeControl "40/5400+30:1800+30"]

{[%evp 11,109,37,45,29,33,16,24,16,25,29,22,24,31,9,26,19,12,13,23,7,16,10,10,0,54,23,51,43,51,28,41,0,68,56,89,57,63,58,141,44,100,117,95,113,103,60,101,86,81,81,88,58,78,61,152,64,58,75,72,72,78,71,116,123,115,104,108,70,74,89,70,57,66,54,66,22,28,22,25,14,14,14,21,13,13,0,0,0,0,0,0,0,0,0,0,0,0,0,0,0]} 1. d4 {[%emt 0:00:02]} d6 {[%emt 0:00:07]} 2. e4 {[%emt 0:00:15]} Nf6 {[%emt 0:00:07]} 3. Nc3 {[%emt 0:00:06]} g6 {[%emt 0:00:05]} 4. Nf3 {[%emt 0:00:07]} Bg7 {[%emt 0:00:09]} 5. Be2 {[%emt 0:00:06]} O-O {[%emt 0:00:10]} 6. O-O {[%emt 0:00:08]} e6 {[%emt 0:02:12]} 7. e5 {[%emt 0:04:44]} dxe5 {[%emt 0:00:12]} 8. Nxe5 {[%emt 0:00:16]} Nfd7 {[%emt 0:00:22]} 9. Nf3 {[%emt 0:04:28] White has an edge.} Nf6 {[%emt 0:00:52]} 10. Bg5 {[%emt 0:03:42]} h6 {[%emt 0:00:56]} 11. Be3 {[%emt 0:04:33]} Nc6 {[%emt 0:06:25]} 12. h3 {[%emt 0:03:05]} Ne7 {[%emt 0:05:40]} 13. Qd2 {[%emt 0:01:57]} Nf5 {[%emt 0:00:33]} 14. Bf4 {[%emt 0:00:54]} g5 {[%emt 0:03:02]} 15. Be5 {[%emt 0:02:31]} b6 {[%emt 0:01:49]} 16. Rad1 {[%emt 0:04:46]} Bb7 {[%emt 0:00:28]} 17. Qd3 {[%emt 0:01:10]} a6 {[%emt 0:11:33]} (17... Qd7 $11) 18. Ne1 {[%emt 0:05:15]} b5 {[%emt 0:01:19]} 19. Bf3 {[%emt 0:01:18]} Nd5 {[%emt 0:03:18][%cal Oc7c5]} 20. Nxd5 {[%emt 0:14:52]} Bxd5 {[%emt 0:00:05]} 21. b3 {[%emt 0:01:53] Dodges Bc4} Nd6 {[%emt 0:13:59]} (21... Bxe5 $11 22. dxe5 Bxf3 23. Qxf3 Qe7) 22. c3 $14 {[%emt 0:04:44][%cal Bc2c3,Bc3c4][%mdl 32]} f6 {[%emt 0:13:17]} 23. Bh2 {[%emt 0:03:22]} (23. Bxd5 {simplifies} exd5 24. Bxd6 Qxd6 25. Qf3) 23... f5 {[%emt 0:00:05]} 24. Be5 {[%emt 0:00:53]} Ne4 {[%emt 0:05:14]} (24... Bxe5 $14 25. Bxd5 (25. dxe5 Ne4 $16) 25... Bh2+ 26. Kxh2 exd5) 25. Nc2 {[%emt 0:02:23]} (25. c4 $16 Bc6 26. Bxg7 Kxg7 27. d5 exd5 28. cxd5) 25... Bb7 {[%emt 0:10:09]} ({Black should try} 25... Bxe5 $14 26. dxe5 Qe8) 26. Bxg7 $16 {[%emt 0:01:04]} Kxg7 {[%emt 0:00:03]} 27. c4 {[%emt 0:01:01]} Qf6 {[%emt 0:00:59]} 28. Ne3 {[%emt 0:03:50]} b4 {[%emt 0:01:50][%cal Oh6h5]} 29. Bxe4 {[%emt 0:03:33]} Bxe4 {[%emt 0:00:05]} 30. Qd2 {[%emt 0:00:06]} a5 {[%emt 0:04:55]} 31. d5 {[%emt 0:00:16]} exd5 {[%emt 0:01:29]} 32. cxd5 {[%emt 0:06:59]} Qc3 {[%emt 0:01:44] [#] Repels Rc1} (32... f4 $1 $14 33. Ng4 Qc3) 33. Qd4+ {[%emt 0:03:12]} ({Better is} 33. Qe2 $1 $16) 33... Qxd4 $14 {[%emt 0:00:10]} 34. Rxd4 {[%emt 0:00:03]} c5 {[%emt 0:00:32]} 35. dxc6 {[%emt 0:00:22]} Bxc6 {[%emt 0:00:08]} 36. Rc1 {[%emt 0:00:13]} Rac8 {[%emt 0:05:36] [#]} 37. Rc5 $1 {[%emt 0:02:17][%csl LRa5,LRf5]} Be4 {[%emt 0:00:06]} 38. Rxa5 {[%emt 0:01:50] White is more active.} Ra8 {[%emt 0:00:03]} 39. Rxa8 {[%emt 0:05:16]} Rxa8 $16 {[%emt 0:00:04][%mdl 4096] Endgame. KRB-KRN} 40. f3 {[%emt 0:00:46]} Bb1 {[%emt 0:01:08]} 41. Rxb4 {[%emt 0:32:13]} Rxa2 {[%emt 0:31:43]} 42. Rb7+ {[%emt 0:03:19]} Kf6 {[%emt 0:04:07]} 43. Nd5+ {[%emt 0:03:29]} Ke5 {[%emt 0:00:06]} 44. Nc3 {[%emt 0:02:34][%csl LRa2,LRb1]} Rb2 {[%emt 0:00:07]} 45. Nxb1 {[%emt 0:01:08]} Rxb1+ $11 {[%emt 0:00:05] KR-KR. The position is equal.} 46. Kh2 {[%emt 0:00:19]} h5 {[%emt 0:05:39]} 47. h4 {[%emt 0:00:00]} gxh4 {[%emt 0:00:00]} 48. b4 {[%emt 0:00:00]} Kf4 {[%emt 0:00:00]} 49. Rh7 {[%emt 0:00:00]} h3 {[%emt 0:00:00]} 50. g3+ {[%emt 0:00:00]} Kxf3 {[%emt 0:00:00]} 51. Rxh5 {[%emt 0:00:00]} Rxb4 {[%emt 0:00:00]} 52. Rxf5+ {[%emt 0:00:00]} Kg4 $1 {[%emt 0:00:00]} 53. Rf4+ {[%emt 0:00:00]} Rxf4 {[%emt 0:00:00]} 54. gxf4 {[%emt 0:00:00]} Kxf4 {[%emt 0:00:00]} 55. Kxh3 {[%emt 0:00:00] Weighted Error Value: White=0.15 (very precise) /Black=0.16 (very precise) .  Mistake:       	White=2     	Black=5      Inaccurate:     	White=7     	Black=4      OK:         	White=18    	Black=21     Best:        	White=2     	Black=3      Strong:       	White=1     	Black=1} 1/2-1/2

[Event "Czech Extraliga 2023-24"]
[Site "Czech Republic"]
[Date "2024.04.07"]
[Round "11.6"]
[White "Slovak, Kilian"]
[Black "Kraus, Tomas"]
[Result "0-1"]
[ECO "B32"]
[WhiteElo "2289"]
[BlackElo "2484"]
[Annotator "TA"]
[PlyCount "46"]
[EventDate "2023.10.14"]
[EventCountry "CZE"]
[SourceTitle "playchess.com"]
[Source "ChessBase"]
[SourceQuality "1"]
[TimeControl "40/5400+30:1800+30"]

{[%evp 15,46,0,0,-49,-38,-55,-45,-79,-72,-90,-72,-162,-155,-229,-206,-276,-274,-270,-274,-461,-463,-457,-454,-460,-433,-438,-418,-541,-345,-528,-523,-608,-609]} 1. e4 {[%emt 0:00:02]} c5 {[%emt 0:00:06]} 2. Nf3 {[%emt 0:00:09]} Nc6 {[%emt 0:00:06]} 3. d4 {[%emt 0:00:07]} cxd4 {[%emt 0:00:06]} 4. Nxd4 {[%emt 0:00:07]} e5 {[%emt 0:00:11]} 5. Nb5 {[%emt 0:00:10]} d6 {[%emt 0:00:08]} 6. N1c3 {[%emt 0:00:18]} a6 {[%emt 0:00:13]} 7. Na3 {[%emt 0:00:08]} Be6 {[%emt 0:00:15]} 8. Nd5 {[%emt 0:11:05]} Nf6 {[%emt 0:00:59]} 9. Nxf6+ {[%emt 0:07:52]} (9. Bg5 $11) 9... Qxf6 $15 {[%emt 0:00:08]} 10. Be3 {[%emt 0:14:15]} Qg6 {[%emt 0:09:29]} 11. f3 {[%emt 0:02:35] Black is slightly better.} Rd8 $1 {[%emt 0:08:24]} 12. c4 {[%emt 0:14:29]} Be7 {[%emt 0:02:00] Black is more active.} 13. Qc2 {[%emt 0:10:04] [#]} (13. g3 $17) 13... O-O $1 $19 {[%emt 0:05:18]} 14. Qf2 {[%emt 0:00:20]} (14. g3 $17) 14... f5 {[%emt 0:04:24]} 15. Bd3 {[%emt 0:03:10]} Nb4 {[%emt 0:08:15] Wards off Nc2} 16. Bb1 {[%emt 0:00:45] [#]} fxe4 {[%emt 0:00:31] ...d5 would now be deadly.} 17. Bxe4 {[%emt 0:02:20] [#]} (17. O-O d5 (17... Rxf3 $2 18. Qxf3 exf3 19. Bxg6 $17) 18. cxd5 Bxd5 (18... Rxf3 19. Qxf3 exf3 20. Bxg6 $17) 19. Qg3) 17... Qxe4 $1 {[%emt 0:04:25][%mdl 512]} 18. fxe4 {[%emt 0:00:08]} Nd3+ {[%emt 0:00:04]} 19. Ke2 {[%emt 0:04:26]} Nxf2 {[%emt 0:00:31]} 20. Bxf2 {[%emt 0:28:00]} Bg4+ {[%emt 0:54:57]} 21. Ke1 {[%emt 0:00:30]} Rf4 {[%emt 0:00:30]} 22. Nc2 {[%emt 0:00:30]} (22. Bb6 {might work better.}) 22... Rxe4+ {[%emt 0:00:00]} 23. Be3 {[%emt 0:00:00]} Rxc4 {[%emt 0:00:00] White did not feel at home in the position after the opening.   Weighted Error Value: White=0.74/Black=0.16 (very precise) .  Mistake:       	White=4     	---        Inaccurate:     	White=2     	Black=1      OK:         	White=3     	Black=7      Best:        	---       	Black=2      Strong:       	---       	Black=2      Brilliant:      	---       	Black=1} 0-1

[Event "Czech Extraliga 2023-24"]
[Site "Czech Republic"]
[Date "2024.04.07"]
[Round "11.7"]
[White "Baklan, Vladimir"]
[Black "Danada, Tomas"]
[Result "1-0"]
[ECO "B30"]
[WhiteElo "2531"]
[BlackElo "2195"]
[Annotator "TA"]
[PlyCount "65"]
[EventDate "2023.10.14"]
[EventCountry "CZE"]
[SourceTitle "playchess.com"]
[Source "ChessBase"]
[SourceQuality "1"]
[TimeControl "40/5400+30:1800+30"]

{[%evp 12,65,20,19,46,-8,64,54,98,85,109,88,108,96,154,154,155,158,160,151,201,172,298,298,303,295,461,455,428,444,458,279,270,251,246,243,240,245,259,254,251,245,399,399,399,399,399,399,399,398,398,398,407,391,363,325]} 1. e4 {[%emt 0:00:03]} c5 {[%emt 0:00:22]} 2. Nf3 {[%emt 0:00:06]} Nc6 {[%emt 0:00:12]} 3. Bb5 {[%emt 0:00:19]} e6 {[%emt 0:00:07]} 4. O-O {[%emt 0:00:10]} Nge7 {[%emt 0:00:06]} 5. c3 {[%emt 0:00:09]} a6 {[%emt 0:00:21]} 6. Ba4 {[%emt 0:00:06]} b5 {[%emt 0:00:10]} 7. Bc2 {[%emt 0:00:05]} c4 {[%emt 0:00:09]} 8. b4 {[%emt 0:06:29]} ({White should play} 8. d3 $14) 8... Ng6 {[%emt 0:01:12]} (8... a5 $11) 9. a4 $1 $14 {[%emt 0:00:04] axb5 would now be deadly.} Rb8 {[%emt 0:01:55] White is slightly better.} 10. axb5 {[%emt 0:05:18]} axb5 {[%emt 0:00:02]} 11. d3 {[%emt 0:00:14]} cxd3 {[%emt 0:02:39]} 12. Bxd3 {[%emt 0:00:04]} (12. Qxd3 Be7 $14) 12... Nge5 {[%emt 0:00:55]} ({Better is} 12... Be7) 13. Nxe5 $16 {[%emt 0:03:48]} Nxe5 {[%emt 0:00:24]} 14. Na3 {[%emt 0:00:11]} Nxd3 {[%emt 0:01:45]} 15. Qxd3 {[%emt 0:00:07]} Qb6 {[%emt 0:04:09]} (15... Ba6 $16 16. Bf4 Rb6) 16. Bf4 $18 {[%emt 0:02:24][%cal Bc1f4,Bf4e3,Be3a7,Ba7b8][%mdl 32]} d6 {[%emt 0:01:24]} (16... Rb7 $142 17. Rfb1 d5) 17. c4 {[%emt 0:00:06] Hoping for c5.} e5 {[%emt 0:09:53]} 18. Be3 {[%emt 0:02:27]} bxc4 {[%emt 0:00:30]} (18... Qd8 $142 19. cxb5 (19. Nxb5 Be7 $18) 19... Be7) 19. Nxc4 {[%emt 0:00:24]} Qd8 {[%emt 0:00:45] [#]} 20. b5 $1 {[%emt 0:04:25][%cal Bb4b5,Bb5b6,Bb6a7][%mdl 544]} Be7 {[%emt 0:01:59]} (20... Bb7 21. Ra7) 21. Ba7 {[%emt 0:10:53]} Rb7 {[%emt 0:02:00]} 22. b6 {[%emt 0:00:03]} Rd7 {[%emt 0:01:08]} 23. Bb8 {[%emt 0:00:19] Threatens to win with Ra7.} O-O {[%emt 0:03:44]} 24. Ra7 {[%emt 0:05:32]} d5 {[%emt 0:06:19]} 25. Nxe5 {[%emt 0:16:04]} (25. Rxd7 $6 Qxd7 26. exd5 (26. Qxd5 Qxd5 27. exd5 Ba6 $16) 26... e4 $18) 25... dxe4 {[%emt 0:02:39]} 26. Qb1 {[%emt 0:00:52]} (26. Qxe4 Rd1 $14) 26... Rxa7 {[%emt 0:05:21] [#]} (26... Rb7 27. Bc7 (27. Nc6 Qe8 $16) 27... Qxc7 28. bxc7 Rxa7) 27. bxa7 {[%emt 0:00:59] White is winning.} Qd5 {[%emt 0:00:04]} 28. Rd1 {[%emt 0:03:32][%cal Bf1d1,Bd1d7,Bd7b7,Bb7b1][%mdl 32] Against e3} Qa8 {[%emt 0:02:14]} 29. Nd7 {[%emt 0:02:23]} Bxd7 {[%emt 0:01:27]} 30. Rxd7 {[%emt 0:00:04]} Bc5 {[%emt 0:00:41]} 31. Qb7 {[%emt 0:00:33]} Qxb7 {[%emt 0:00:06]} 32. Rxb7 {[%emt 0:00:03]} Rd8 {[%emt 0:00:27]} 33. Rb1 {[%emt 0:01:39] Against Rd1+. Black did not feel at home in the position after the opening.   Weighted Error Value: White=0.15 (very precise) /Black=0.35.  Mistake:       	White=1     	Black=6      Inaccurate:     	White=1     	Black=1      OK:         	White=12    	Black=11     Best:        	---       	Black=1      Strong:       	White=1     	---} (33. a8=B $2 Rd1#) 1-0

[Event "Czech Extraliga 2023-24"]
[Site "Czech Republic"]
[Date "2024.04.07"]
[Round "11.7"]
[White "Kriebel, Tadeas"]
[Black "Jirovsky, Milos"]
[Result "1-0"]
[ECO "D36"]
[WhiteElo "2512"]
[BlackElo "2450"]
[Annotator "TA"]
[PlyCount "81"]
[EventDate "2023.10.14"]
[EventCountry "CZE"]
[SourceTitle "playchess.com"]
[Source "ChessBase"]
[SourceQuality "1"]
[TimeControl "40/5400+30:1800+30"]

{[%evp 22,81,37,26,20,30,51,16,7,10,7,21,18,16,22,24,45,26,24,24,24,22,20,0,0,0,245,260,338,342,1108,1110,1062,1056,1051,1000,929,610,595,579,545,376,598,577,550,306,320,324,277,277,737,735,5065,4306,2241,2243,1936,887,1672,875,29998,29999]} 1. d4 {[%emt 0:00:07]} d5 {[%emt 0:00:07]} 2. c4 {[%emt 0:00:16]} e6 {[%emt 0:00:12]} 3. Nc3 {[%emt 0:00:08]} Nf6 {[%emt 0:00:10]} 4. cxd5 {[%emt 0:00:11]} exd5 {[%emt 0:00:06]} 5. Bg5 {[%emt 0:00:05]} c6 {[%emt 0:00:12]} 6. e3 {[%emt 0:00:05]} Be7 {[%emt 0:00:55]} 7. Bd3 {[%emt 0:00:07]} Nbd7 {[%emt 0:00:12]} 8. Qc2 {[%emt 0:00:26]} O-O {[%emt 0:02:21]} 9. Nf3 {[%emt 0:00:10]} Re8 {[%emt 0:00:21]} 10. O-O {[%emt 0:00:32]} Nf8 {[%emt 0:00:53]} 11. h3 {[%emt 0:01:06]} Be6 {[%emt 0:07:37]} 12. Ne5 {[%emt 0:00:15]} N6d7 {[%emt 0:00:54]} 13. Bxe7 {[%emt 0:00:06]} Rxe7 {[%emt 0:00:30]} 14. f4 {[%emt 0:00:37]} f6 {[%emt 0:04:01] The position is equal.} 15. Nf3 {[%emt 0:00:09]} Bf7 {[%emt 0:00:59]} 16. Rae1 {[%emt 0:01:01]} Nb6 {[%emt 0:03:33][%cal Bd7b6,Bb6c8,Bc8d6,Bd6e4][%mdl 32]} 17. g4 {[%emt 0:01:54]} Qc7 {[%emt 0:01:41]} 18. Qf2 {[%emt 0:02:19]} Nc8 {[%emt 0:02:35]} 19. Kh1 {[%emt 0:10:53]} Nd6 {[%emt 0:00:41]} 20. Rg1 {[%emt 0:00:04]} Ne4 {[%emt 0:10:40]} 21. Bxe4 {[%emt 0:00:19]} dxe4 {[%emt 0:00:05]} 22. Nh4 {[%emt 0:00:07]} (22. Nd2 {simplifies} Rae8 23. Nf1 c5 24. dxc5 Qxc5 25. Ng3) 22... g6 $1 {[%emt 0:00:19]} 23. Nf5 {[%emt 0:02:47]} Ree8 {[%emt 0:13:54] [#] White leaves nothing to chance now.} (23... gxf5 $11 24. gxf5+ Kh8) 24. Qh4 $1 $18 {[%emt 0:01:50]} Qd8 {[%emt 0:03:15]} (24... Qd7 25. Qxf6) 25. Qh6 {[%emt 0:00:39][%csl Gf5][%cal Rh6g7]} gxf5 $2 {[%emt 0:00:15]} (25... Ne6 26. Rd1 Kh8) 26. gxf5+ {[%emt 0:00:11]} Bg6 {[%emt 0:00:17]} 27. fxg6 {[%emt 0:03:23]} hxg6 {[%emt 0:00:09]} 28. Rxg6+ {[%emt 0:00:28]} Nxg6 {[%emt 0:00:08]} 29. Qxg6+ {[%emt 0:00:05]} Kf8 {[%emt 0:00:05] Black is weak on the dark squares} 30. Rg1 {[%emt 0:00:08][%csl Gg1][%cal Rg6g7]} Ke7 {[%emt 0:00:16]} 31. Qh7+ {[%emt 0:04:07]} (31. Qxe4+ Kd6 32. Qh7 Rxe3 $14) 31... Ke6 {[%emt 0:02:31]} (31... Kd6 $142 32. Rg7 (32. Qxb7 Qd7 $11) (32. Nxe4+ Rxe4 33. Qxe4 Qd7 $18) 32... Rc8 33. Nxe4+ Rxe4 34. Qxe4 Rc7) 32. Nxe4 {[%emt 0:25:21][%cal Bc3e4,Be4f6,Bf6d7][%mdl 32] White wants to mate with Nc5+.} ({Not} 32. Qxb7 Qd7 33. f5+ (33. Qb3+ Kd6 $18) 33... Kd6 34. Qb4+ (34. Nxe4+ $2 Rxe4 35. Qb4+ Kc7 $19) 34... Kc7 $16) 32... Re7 {[%emt 0:04:05]} 33. f5+ {[%emt 0:01:19]} Kd5 {[%emt 0:03:20][%cal Be6d5,Bd5c4,Bc4d4,Bd4c5,Bc5d6,Bd6c7,Bc7b6][%mdl 32]} 34. Nxf6+ {[%emt 0:11:52]} Kc4 {[%emt 0:00:22] [#]} 35. Qh5 {[%emt 0:02:15]} Rxe3 {[%emt 0:02:01]} (35... Kb4 36. Qf3 Rf7) 36. Qf7+ {[%emt 0:00:18]} Kxd4 {[%emt 0:38:48]} 37. Rg4+ {[%emt 0:00:30]} Kc5 {[%emt 0:00:00]} 38. Nd7+ {[%emt 0:00:26]} (38. Qxb7 {gets mated.} Qd1+ (38... Rxh3+ 39. Kg2 $11) 39. Kh2 Qd6+ 40. Kg1 Re1+ 41. Kf2 Qd2+ 42. Kg3 Rg1+ 43. Kh4 Rh8+) 38... Kd6 {[%emt 0:00:00]} 39. Rd4+ {[%emt 0:33:24]} Kc7 {[%emt 0:01:30]} 40. Nc5+ {[%emt 0:00:00]} Kb6 {[%emt 0:00:00]} 41. Qxb7+ {Weighted Error Value: White=0.54/Black=0.69.  Loses game:     	---       	Black=1      Mistake:       	---       	Black=3      Inaccurate:     	White=3     	Black=1      OK:         	White=7     	Black=5      Best:        	White=2     	Black=2      Strong:       	White=1     	Black=1} 1-0

[Event "Czech Extraliga 2023-24"]
[Site "Czech Republic"]
[Date "2024.04.07"]
[Round "11.7"]
[White "Velicka, Petr"]
[Black "Jurcik, Martin"]
[Result "1/2-1/2"]
[ECO "E01"]
[WhiteElo "2369"]
[BlackElo "2359"]
[Annotator "RC"]
[PlyCount "41"]
[EventDate "2023.10.14"]
[EventCountry "CZE"]
[SourceTitle "playchess.com"]
[Source "ChessBase"]
[SourceQuality "1"]
[TimeControl "40/5400+30:1800+30"]

1. Nf3 {[%emt 0:00:08]} Nf6 {[%emt 0:00:24]} 2. c4 {[%emt 0:00:57]} e6 {[%emt 0:00:39]} 3. g3 {[%emt 0:00:12]} d5 {[%emt 0:01:00]} 4. d4 {[%emt 0:00:10]} Bb4+ {[%emt 0:00:57]} 5. Bd2 {[%emt 0:00:07]} Bd6 {[%emt 0:00:54]} 6. Bg5 {[%emt 0:00:58]} Nbd7 {[%emt 0:02:43]} 7. Bg2 {[%emt 0:02:49]} c6 {[%emt 0:01:35]} 8. Nbd2 {[%emt 0:02:55]} h6 {[%emt 0:02:13]} 9. Bxf6 {[%emt 0:00:08]} Nxf6 {[%emt 0:00:09]} 10. O-O {[%emt 0:00:23]} O-O {[%emt 0:01:01]} 11. Qc2 {[%emt 0:01:07]} b6 {[%emt 0:02:48]} 12. e4 {[%emt 0:00:50]} Be7 {[%emt 0:01:00]} 13. e5 {[%emt 0:00:59]} Nd7 {[%emt 0:01:00]} 14. cxd5 {[%emt 0:00:14]} cxd5 {[%emt 0:00:11]} 15. Rfc1 {[%emt 0:00:14]} Ba6 {[%emt 0:04:46]} 16. Bf1 {[%emt 0:04:52]} Bxf1 {[%emt 0:02:52]} 17. Nxf1 {[%emt 0:00:30]} Rc8 {[%emt 0:04:08]} 18. Qd1 {[%emt 0:06:16]} Nb8 {[%emt 0:01:28]} 19. Rxc8 {[%emt 0:04:29]} Qxc8 {[%emt 0:00:01]} 20. Rc1 {[%emt 0:00:12]} Qa6 {[%emt 0:00:20]} 21. a3 {[%emt 1:12:30]} 1/2-1/2

[Event "Czech Extraliga 2023-24"]
[Site "Czech Republic"]
[Date "2024.04.07"]
[Round "11.7"]
[White "Mica, Marek"]
[Black "Kaczur, Florian"]
[Result "0-1"]
[ECO "E20"]
[WhiteElo "2364"]
[BlackElo "2532"]
[Annotator "TA"]
[PlyCount "136"]
[EventDate "2023.10.14"]
[EventCountry "CZE"]
[SourceTitle "playchess.com"]
[Source "ChessBase"]
[SourceQuality "1"]
[TimeControl "40/5400+30:1800+30"]

{[%evp 15,136,-19,-22,-40,-53,-59,-47,-67,-57,-56,-44,-50,-54,-59,-41,-45,-43,-33,-39,-43,-12,-16,0,0,0,-3,12,0,51,13,25,-41,-43,-45,-45,-41,18,19,143,80,70,65,67,47,89,0,0,-39,-31,-32,-29,-31,-17,-17,-12,-40,-8,-15,0,-16,0,0,0,-12,-12,-31,-13,-13,-13,-79,-6,-6,-7,-29,-27,-30,-13,-18,0,-15,0,0,0,0,0,0,0,0,0,-12,-12,-31,-22,-23,-15,-26,-20,-23,0,-21,0,0,0,0,0,0,0,0,0,-151,-54,-62,-47,-135,-135,-135,-135,-135,-134,-135,-127,-238,-177]} 1. Nf3 {[%emt 0:00:09]} Nf6 {[%emt 0:01:31]} 2. c4 {[%emt 0:00:21]} e6 {[%emt 0:01:44]} 3. Nc3 {[%emt 0:00:18]} Bb4 {[%emt 0:01:45]} 4. g3 {[%emt 0:03:14]} O-O {[%emt 0:04:44]} 5. Bg2 {[%emt 0:05:02]} d5 {[%emt 0:01:10]} 6. a3 {[%emt 0:03:25]} Be7 {[%emt 0:01:59]} 7. d4 {[%emt 0:01:18]} Nc6 {[%emt 0:13:41]} 8. O-O {[%emt 0:02:41]} dxc4 {[%emt 0:03:33]} 9. Qa4 {[%emt 0:03:21] Dodges Na5} Nxd4 {[%emt 0:01:46]} 10. Nxd4 {[%emt 0:27:01]} Qxd4 {[%emt 0:00:30]} 11. Rd1 {[%emt 0:00:40] Black is slightly better.} Qb6 {[%emt 0:06:15]} 12. Qxc4 {[%emt 0:06:53]} c6 {[%emt 0:02:30]} 13. Be3 {[%emt 0:24:13]} Qc7 {[%emt 0:01:01]} (13... Qxb2 $2 14. Ra2 $18) 14. b4 {[%emt 0:01:27]} a6 {[%emt 0:11:03]} 15. Rd2 {[%emt 0:02:51]} e5 {[%emt 0:03:12]} 16. Na4 {[%emt 0:03:18]} Be6 {[%emt 0:00:50]} 17. Qc3 {[%emt 0:00:07]} Rae8 {[%emt 0:06:30]} 18. Bb6 {[%emt 0:01:02]} Qc8 {[%emt 0:01:44]} 19. e4 {[%emt 0:01:57]} Nd7 {[%emt 0:13:29]} 20. Rad1 {[%emt 0:01:02]} f6 {[%emt 0:04:30]} 21. Bf1 {[%emt 0:02:08]} Kh8 {[%emt 0:01:09]} (21... Rf7 $11) 22. Bc4 {[%emt 0:01:35]} Bxc4 {[%emt 0:01:33]} 23. Rxd7 {[%emt 0:06:20]} (23. Qxc4 $11 Nxb6 24. Nxb6) 23... Be2 {[%emt 0:00:13] A strong pair of Bishops.} 24. R1d2 {[%emt 0:00:41][%cal Ob6c7]} Bg4 {[%emt 0:00:49]} 25. Rc7 {[%emt 0:00:09]} Qe6 {[%emt 0:00:13]} (25... Qb8 $15 26. Nc5 Bxc5 27. bxc5 Rc8) 26. Rxb7 $11 {[%emt 0:00:46]} Rf7 {[%emt 0:05:14]} (26... f5 $11) 27. Bc5 {[%emt 0:00:46]} (27. Rc7 $142 Rff8 28. Rxc6) 27... Bd8 $16 {[%emt 0:00:41] Black is weak on the dark squares} 28. Rxf7 {[%emt 0:00:38]} Qxf7 {[%emt 0:00:02]} 29. Qd3 {[%emt 0:00:38] Strongly threatening Qxd8.} h5 {[%emt 0:00:17]} 30. f3 {[%emt 0:00:26]} (30. Qxa6 $16 Kh7 31. Kg2 (31. Qxc6 Qc4 $11)) 30... Bh3 $11 {[%emt 0:00:28]} 31. Bf2 {[%emt 0:00:24][%cal Od3c2]} a5 {[%emt 0:00:20]} 32. Nc5 {[%emt 0:00:24]} axb4 {[%emt 0:00:15]} 33. axb4 {[%emt 0:00:07]} Bb6 {[%emt 0:01:45]} 34. Qb3 {[%emt 0:01:02]} Qe7 {[%emt 0:01:08]} 35. Qc4 {[%emt 0:00:57]} (35. Nd3 {seems wilder.} Qa7 36. Bxb6 Qxb6+ 37. Nf2) 35... Rd8 {[%emt 0:00:08]} 36. Rxd8+ {[%emt 0:00:22]} Qxd8 {[%emt 0:00:02]} 37. Qd3 {[%emt 0:00:20]} Qa8 {[%emt 0:00:15]} 38. Qa6 {[%emt 0:00:36]} Qd8 {[%emt 0:00:30]} 39. Qd3 {[%emt 0:00:10]} Qg8 {[%emt 0:00:40]} 40. Nb3 {[%emt 0:01:06]} Qb8 {[%emt 0:01:20]} 41. Nc5 {[%emt 0:07:05]} Ba7 {[%emt 0:05:20]} 42. Qc4 {[%emt 0:01:03]} (42. Qd2 $11) 42... Qd6 {[%emt 0:09:26]} (42... Bxc5 $1 $17 43. Qxc5 Qa8) 43. Nd3 {[%emt 0:02:09]} Qd7 {[%emt 0:00:10]} 44. Bc5 {[%emt 0:03:55]} Bxc5+ {[%emt 0:03:26]} 45. bxc5 {[%emt 0:00:21][%mdl 4096] Endgame. KQB-KQN} Be6 {[%emt 0:01:04]} 46. Qc3 {[%emt 0:00:48]} Qa7 {[%emt 0:00:15]} 47. Kf2 {[%emt 0:01:18]} Qa2+ {[%emt 0:00:42]} 48. Qb2 {[%emt 0:00:40]} Qc4 {[%emt 0:01:09]} 49. Ke3 {[%emt 0:00:41]} Kh7 {[%emt 0:00:10]} 50. f4 {[%emt 0:04:54]} exf4+ {[%emt 0:00:23]} 51. gxf4 {[%emt 0:00:14]} Bc8 {[%emt 0:00:29]} 52. f5 {[%emt 0:06:31]} Ba6 {[%emt 0:01:29]} 53. Qe2 {[%emt 0:00:55]} Kg8 {[%emt 0:01:40]} 54. Qd2 {[%emt 0:01:46]} Qb3 {[%emt 0:00:52]} 55. h4 {[%emt 0:00:51]} Kf7 {[%emt 0:04:21]} 56. Kd4 {[%emt 0:01:17]} Qc4+ {[%emt 0:00:37]} 57. Ke3 {[%emt 0:00:08]} Qb3 {[%emt 0:02:09]} 58. Kd4 {[%emt 0:00:12]} Qa4+ {[%emt 0:00:20]} 59. Ke3 {[%emt 0:01:01]} Qa3 {[%emt 0:01:16]} 60. Kd4 {[%emt 0:02:45]} Qa1+ {[%emt 0:00:51]} 61. Qb2 {[%emt 0:01:09]} Qg1+ {[%emt 0:00:33]} 62. Nf2 $2 {[%emt 0:00:44]} ({Better is} 62. Kc3 $1 $11 Bxd3 63. Qa2+ Ke7 64. Qe6+ Kf8 65. Qc8+ Kf7 66. Qe6+ Kf8 67. Qc8+ Kf7 68. Qd7+ Kg8 69. Qe8+ Kh7 70. Qxh5+ Kg8 71. Qe8+ Kh7 72. Qh5+ Kg8 73. Qe8+ Kh7 74. Qh5+) 62... Ke7 {[%emt 0:00:31]} ({Black should try} 62... Qg3 $17 {( -> ...Qe5+)} 63. Qd2 (63. Qa2+ $2 Kf8 $19) 63... Kg8 (63... Qxh4 64. Qa2+ Ke7 65. Nd3 $11)) 63. Qa2 $15 {[%emt 0:00:38][%cal Oe4e5]} Kf8 $1 {[%emt 0:01:22][%cal Og1g3] Threatens to win with ...Qg3! Active counter play!} 64. Qb2 {[%emt 0:00:53]} (64. Kc3 $15 Qg3+ 65. Kb4 Qb8+ (65... Qxh4 66. Qxa6 Qxf2 67. Qxc6 $11) 66. Kc3) 64... Kg8 $1 $17 {[%emt 0:01:08]} 65. Qb3+ {[%emt 0:00:26] [#]} Kh8 $1 {[%emt 0:00:23]} 66. Qf3 {[%emt 0:00:32] [#]} Qa1+ $1 {[%emt 0:00:18]} 67. Qc3 {[%emt 0:00:07]} Qf1 {[%emt 0:00:34]} 68. Qc2 {[%emt 0:00:56]} (68. Qg3 $17) 68... Qg1 {[%emt 0:00:57] Weighted Error Value: White=0.13 (very precise) /Black=0.14 (very precise) .  Mistake:       	White=7     	Black=5      Inaccurate:     	White=3     	Black=3      OK:         	White=31    	Black=18     Best:        	White=3     	Black=2      Strong:       	---       	Black=2} 0-1